Cogmind - Beta 16 @@@ ROGUE MODE // 2025.10.23 @ 21:44:27 // Winter2019/RPGLIKE Player: Fellun Result: Destroyed by S-27 Virus with Autogun Performance ------------- Evolutions (5) 2500 Regions Visited (15) 3000 Robots Destroyed (210) 1050 Value Destroyed (9072) 9072 Prototype IDs (46) 920 Alien Tech Used (1) 200 Bonus (6514) 6514 TOTAL SCORE: 23256 Bonus ------- Triggered High Security 500 High Alert Combat Kills 3489 Follower Combat Kills 1837 Registered with UFD 300 Met Optimus in HQ 500 Met Data Miner 300 Friendly Fire -412 Cogmind --------- Core Integrity 0/1000 Matter 390/400 Energy 224/240 System Corruption 1% Temperature Cool (-92) Movement Flying (33) Location -5/Upper Caves Parts ------- > --- POWER (2) -------- Light Neutrino Core Light Neutrino Core > --- PROPULSION (6) --- Xenon Bombardment Thruster Nuclear Pulse Thruster Field Propulsion Drive Impulse Thruster Array > --- UTILITY (11) ----- Advanced Cryofiber Web Experimental Heat Sink Active Sensor Suite Kinecellerator Expert System (Grunt) Improved Weapon Cycler Experimental Hacking Suite A0-MCA's Component Scanner > --- WEAPON (4) ------- Quantum Rifle Enhanced Coil Gun Railgun Hypervelocity Railgun > --- INVENTORY (4) ---- Field Propulsion Drive Deep Structural Scanner Graphene Brace PL-3XN's Ring of Power Peak State ------------ > --- POWER ------------ Light Neutrino Core Light Neutrino Core > --- PROPULSION ------- Xenon Bombardment Thruster Nuclear Pulse Thruster Field Propulsion Drive Impulse Thruster Array > --- UTILITY ---------- Advanced Cryofiber Web Experimental Heat Sink Deep Structural Scanner Active Sensor Suite Kinecellerator Expert System Improved Weapon Cycler Experimental Hacking Suite A0-MCA's Component Scanner > --- WEAPON ----------- Quantum Rifle Enhanced Coil Gun Railgun Hypervelocity Railgun > --- INVENTORY -------- Field Propulsion Drive Graphene Brace Core Expander PL-3XN's Ring of Power [Rating: 157] Favorites ----------- Power Light Neutrino Core Engine Light Angular Momentum Engine Power Core Light Neutrino Core Reactor Antimatter Reactor Propulsion Nuclear Pulse Thruster Treads Heavy Treads Leg Carbon-fiber Leg Wheel Compact Wheel Flight Unit Nuclear Pulse Thruster Utility A0-MCA's Component Scanner Device Deep Structural Scanner Processor A0-MCA's Component Scanner Hackware Experimental Hacking Suite Protection Makeshift Light Armor Plating Weapon Heavy Assault Rifle Energy Gun Thermic Laser Ballistic Gun Heavy Assault Rifle Launcher Grenade Launcher Build | -11 -10 -9 -9 -9 -9 -6 -6 -6 -6 -6 -6 -5 -5 -5 -5 ------- Run | Yrd Mat Mat Sto Rec Scr Fac Was Fac Low Low Dat Pro Fac Upp Upp Slots Evolved 18 | 4 . 2 1 . 2 . 2 6 . . . . 1 . . Power 1 | 1 . . . . . . . . . . . . . . . Propulsion 4 | 1 . . . . . . . 3 . . . . . . . Utility 10 | 1 . 1 1 . 2 . 1 3 . . . . 1 . . Weapon 3 | 1 . 1 . . . . 1 . . . . . . . . Parts Attached 67 | 6 6 8 7 1 6 2 5 16 1 2 . 1 6 . . Power 16 | 2 1 2 5 . 1 . 2 3 . . . . . . . Engine 10 | 2 1 2 4 . 1 . . . . . . . . . . Core 4 | . . . 1 . . . . 3 . . . . . . . Reactor 2 | . . . . . . . 2 . . . . . . . . Propulsion 14 | 2 . 1 . . . . 1 8 . . . . 2 . . Treads 1 | . . . . . . . 1 . . . . . . . . Leg 1 | . . . . . . . . 1 . . . . . . . Wheel 6 | 2 . 1 . . . . . 3 . . . . . . . Hover . | . . . . . . . . . . . . . . . . Flight 6 | . . . . . . . . 4 . . . . 2 . . Utility 23 | . 3 2 1 1 5 . 1 4 1 2 . . 3 . . Device 13 | . 3 1 . . 1 . 1 2 1 1 . . 3 . . Storage . | . . . . . . . . . . . . . . . . Processor 4 | . . . 1 . 3 . . . . . . . . . . Hackware 1 | . . . . . . . . 1 . . . . . . . Protection 5 | . . 1 . 1 1 . . 1 . 1 . . . . . Artifact . | . . . . . . . . . . . . . . . . Weapon 14 | 2 2 3 1 . . 2 1 1 . . . 1 1 . . Energy Gun 3 | 1 . . . . . 1 . . . . . 1 . . . Energy Cannon . | . . . . . . . . . . . . . . . . Ballistic Gun 10 | 1 1 3 1 . . 1 1 1 . . . . 1 . . Ballistic Cannon . | . . . . . . . . . . . . . . . . Launcher 1 | . 1 . . . . . . . . . . . . . . Special Weapon . | . . . . . . . . . . . . . . . . Impact Weapon . | . . . . . . . . . . . . . . . . Slashing Weapon . | . . . . . . . . . . . . . . . . Piercing Weapon . | . . . . . . . . . . . . . . . . Special Melee Weapon . | . . . . . . . . . . . . . . . . Unidentified Prototypes 3 | . . . 2 . . . . . . . . . . . 1 Parts Lost 1 | . . . . . . . . . 1 . . . . . . Power . | . . . . . . . . . . . . . . . . Propulsion . | . . . . . . . . . . . . . . . . Utility 1 | . . . . . . . . . 1 . . . . . . Weapon . | . . . . . . . . . . . . . . . . Highest Loss Streak 1 | . . . . . . . . . 1 . . . . . . To Critical Strikes . | . . . . . . . . . . . . . . . . Average Backups 2 | . 1 1 1 1 1 1 2 2 3 3 3 3 2 3 3 Power . | . . . . . . . . . . . . . . . . Propulsion . | . . . . . . . . 1 1 . . . . 1 1 Utility . | . . . . . . 1 . . 1 1 1 1 1 1 2 Weapon . | . 1 1 1 1 . . . 1 1 1 1 1 . . . Tool/Special . | . . . . . . . . . . . . . . . . Unused Backups 3 | . 1 . . . . . . 1 . . . . . . 1 Power . | . . . . . . . . . . . . . . . . Propulsion . | . . . . . . . . . . . . . . . . Utility 2 | . . . . . . . . 1 . . . . . . 1 Weapon 1 | . 1 . . . . . . . . . . . . . . Tool/Special . | . . . . . . . . . . . . . . . . Average Slot Usage (%) 91 | . 88 98 98 100 99 100 99 86 82 84 85 85 85 86 78 Engine 6 | . 25 21 11 9 7 7 6 3 . . . . . . . Core 5 | . . . 5 9 7 7 . 4 9 9 9 9 9 9 8 Treads 1 | . . . . . . . . 3 . . . . . . . Wheel 8 | . 25 21 18 18 16 15 11 3 . . . . . . . Flight 6 | . . . . . . . . 4 19 19 19 19 18 18 17 Device 16 | . 13 22 18 18 13 7 9 13 17 22 23 23 26 27 21 Processor 14 | . . . 7 9 19 30 27 18 10 9 9 9 9 9 8 Hackware 1 | . . . . . . . . 1 4 4 4 4 4 4 4 Protection 4 | . . 3 9 9 7 7 6 5 1 . . . . . . Energy Gun 6 | . 12 10 9 9 7 7 6 5 4 4 4 4 4 4 4 Ballistic Gun 15 | . 11 18 17 18 16 15 20 16 14 14 14 14 13 13 13 Peak Build Rating 157 | 6 10 14 19 20 45 51 81 143 138 140 140 143 157 157 152 Average Rating 83 | 4 7 11 17 19 29 49 67 104 135 139 140 141 154 157 152 On Entrance 78 | . 6 8 14 19 20 45 51 81 136 135 140 140 143 157 157 Avg Prop Armor Cover (%) 1 | . . . . . . . . 1 . . . . . . . Naked Turns . | . . . . . . . . . . . . . . . . Heaviest Build 51 | 10 15 26 30 29 30 30 48 48 48 46 46 48 51 51 . Greatest Support 75 | 26 26 28 33 33 33 33 75 75 49 49 49 49 53 53 . Greatest Overweight (x) 2 | . . . 1 . . . 1 2 . . . . . . . Average Overweight (x) . | . . . . . . . . . . . . . . . . Largest Inventory Capacity 4 | 1 1 1 1 1 2 2 4 4 4 4 4 4 4 4 4 Average Capacity 2 | . 1 1 1 1 1 2 3 4 4 4 4 4 4 4 4 Most Carried 4 | 1 1 1 1 1 2 2 4 4 4 4 4 4 4 4 4 Average Carried 2 | . . 1 1 1 . 2 3 3 4 4 4 4 3 4 4 Final Capacity 4 | 1 1 1 1 1 2 2 4 4 4 4 4 4 4 4 4 Final Carried 4 | 1 1 1 1 1 2 2 4 4 4 4 4 4 4 4 4 Class Distribution -------------------- 39% | Gunner 25% | Hacker-Scout 8% | Hacker-Skirmisher 6% | Scientist-Tank 6% | Scavenger-Gunner 5% | Scientist-Gunner 5% | Mutant Dominant Class ---------------- Mutant | -10/Materials Gunner | -9/Materials Gunner | -9/Storage Gunner | -9/Recycling Gunner | -9/Scraptown Gunner | -6/Factory Gunner | -6/Waste Hacker-Skirmisher | -6/Factory Hacker-Scout | -6/Lower Caves Hacker-Scout | -6/Lower Caves Hacker-Scout | -6/Data Miner Hacker-Scout | -5/Proximity Caves Hacker-Scout | -5/Factory Hacker-Scout | -5/Upper Caves Hacker-Scout | -5/Upper Caves Resources | -11 -10 -9 -9 -9 -9 -6 -6 -6 -6 -6 -6 -5 -5 -5 -5 ----------- Run | Yrd Mat Mat Sto Rec Scr Fac Was Fac Low Low Dat Pro Fac Upp Upp Matter Collected 6035 | 204 227 378 384 77 80 . 531 1490 158 490 . 594 1332 90 . Remotely . | . . . . . . . . . . . . . . . . Salvage Created 9103 | . 245 665 1027 77 . 77 615 2166 253 742 . 994 2058 184 . Parts 491 | . 19 50 52 6 8 7 7 107 18 45 . 37 132 3 . Haulers Intercepted . | . . . . . . . . . . . . . . . . Recyclers Shooed 1 | . . . 1 . . . . . . . . . . . . Parts Field Recycled . | . . . . . . . . . . . . . . . . Retrieved Matter . | . . . . . . . . . . . . . . . . Parts Self-Destructed 110 | . . . . . . . . . 28 40 . 39 . 3 . Prevented 1 | . . . . . . . . . 1 . . . . . . Parts Restored . | . . . . . . . . . . . . . . . . Kills | -11 -10 -9 -9 -9 -9 -6 -6 -6 -6 -6 -6 -5 -5 -5 -5 ------- Run | Yrd Mat Mat Sto Rec Scr Fac Was Fac Low Low Dat Pro Fac Upp Upp Combat Hostiles Destroyed 187 | . 9 19 24 2 3 5 . 42 6 21 . 19 36 1 . Guns 184 | . 8 19 24 2 3 5 . 40 6 21 . 19 36 1 . AOE 1 | . 1 . . . . . . . . . . . . . . Classes Destroyed 21 | . 3 4 2 . 1 . . 7 . 1 . 1 2 . . Worker 2 | . . 1 . . . . . 1 . . . . . . . Builder 6 | . . 1 1 . . . . 3 . . . . 1 . . Tunneler 2 | . 1 . . . . . . 1 . . . . . . . Recycler 2 | . . . . . . . . 2 . . . . . . . Mechanic 2 | . . . . . . . . 2 . . . . . . . Operator 3 | . . . . . . . . 1 . . . . 2 . . Drone 1 | . . . . . . . . . . . . 1 . . . Watcher 6 | . . . 2 . . . . . . . . . 4 . . Swarmer 35 | . 6 . 3 . . 3 . 9 . 6 . 1 7 . . Cutter 2 | . . . . . . . . . . . . . 2 . . Saboteur 2 | . . . . . . . . 1 . . . . 1 . . Grunt 79 | . 3 13 12 . . . . 16 5 10 . 9 11 . . Brawler 5 | . . . 2 . . . . . . . . 3 . . . Duelist 9 | . . 1 2 . . 1 . 4 . 1 . . . . . Sentry 28 | . . 5 5 2 . 1 . 2 . 1 . 2 9 1 . Hunter 10 | . . . . . . . . 3 1 . . 3 3 . . Programmer 8 | . . . . . . . . 5 . 2 . . 1 . . Heavy 3 | . . . . . . . . 2 . . . . 1 . . Behemoth 1 | . . . . . . . . . . . . . 1 . . Scrapper 2 | . . . . . 2 . . . . . . . . . . Decomposer 3 | . . . . . . . . . . . . . . 3 . Butcher 1 | . . . . . 1 . . . . . . . . . . Mutant 1 | . . . . . . . . . . 1 . . . . . Best Kill Streak 12 | . 4 5 12 1 2 3 . 8 3 11 . 5 11 1 . Combat Bots Only 11 | . 3 5 9 1 2 3 . 6 3 11 . 5 11 1 . Max Kills in Single Turn 3 | . 2 3 2 1 1 1 . 2 1 2 . 2 3 1 . Gunslinging 2 | . . . 1 . . . . 1 . 1 . 1 2 . . Exploded 1 | . 1 . . . . . . . . . . . . . . Melee . | . . . . . . . . . . . . . . . . Uniques/NPCs Destroyed . | . . . . . . . . . . . . . . . . Combat | -11 -10 -9 -9 -9 -9 -6 -6 -6 -6 -6 -6 -5 -5 -5 -5 -------- Run | Yrd Mat Mat Sto Rec Scr Fac Was Fac Low Low Dat Pro Fac Upp Upp Hostile Shots Fired 869 | . 73 67 64 4 13 84 . 265 19 60 . 81 133 2 4 Missed 331 | . 33 22 19 2 2 26 . 92 8 23 . 34 67 2 1 Hits 538 | . 40 45 45 2 11 58 . 173 11 37 . 47 66 . 3 Melee 9 | . . 1 4 . 2 1 . 1 . . . . . . . Projectile 529 | . 40 44 41 2 9 57 . 172 11 37 . 47 66 . 3 Critical Strikes 18 | . . 1 2 . 2 1 . 3 1 3 . 3 2 . . Part Disruptions 1 | . . . . . . . . . . 1 . . . . . Damage Taken 9003 | . 430 645 666 31 270 880 . 2853 198 560 . 836 1596 . 38 Core 7007 | . 340 507 490 24 192 680 . 2147 146 445 . 696 1311 . 29 Absorbed by Shields . | . . . . . . . . . . . . . . . . Redirected to Core 5559 | . 273 428 389 24 145 502 . 1789 110 384 . 483 1003 . 29 Ignored by Resistances 375 | . . . . . . . . 131 12 34 . 61 131 . 6 Regen/Repaired (Parts) 289 | . . . . . . . 71 60 . . . . 158 . . Core Remaining (%) 89 | 100 60 . . . 98 . . . . . . 100 . . . Volleys Fired 469 | . 29 52 52 3 8 27 17 101 11 36 . 46 81 6 . Largest 4 | . 2 3 3 3 3 3 4 4 4 4 . 4 4 4 . Hottest 199 | . 80 96 103 96 96 136 171 178 178 178 . 187 199 199 . Shots Fired 1619 | . 55 138 156 9 24 80 68 390 44 142 . 178 311 24 . Gun 1616 | . 53 138 155 9 24 80 68 390 44 142 . 178 311 24 . Cannon . | . . . . . . . . . . . . . . . . Launcher 3 | . 2 . 1 . . . . . . . . . . . . Special . | . . . . . . . . . . . . . . . . Kinetic 1187 | . 27 95 103 6 16 54 51 300 33 106 . 135 243 18 . Thermal 429 | . 26 43 52 3 8 26 17 90 11 36 . 43 68 6 . Explosive 3 | . 2 . 1 . . . . . . . . . . . . Electromagnetic . | . . . . . . . . . . . . . . . . Robot Hit Streak 61 | . 6 18 37 10 32 19 61 22 8 15 . 18 22 11 . Robot Miss Streak 6 | . 4 2 6 . . 4 1 4 3 3 . 4 4 2 . Penetration Max 2 | . . . . . . . 1 2 1 2 . 1 1 . . Secondary Targets 37 | . 2 3 4 . 1 . . 9 . 4 . 5 9 . . Max Gunslinging Chain 2 | . 1 1 1 . 1 . . 2 . 1 . 1 2 . . Shots Hit Robots 1102 | . 32 100 110 7 22 48 61 277 25 88 . 125 189 18 . Core Hits 425 | . 14 40 49 4 9 15 10 103 14 39 . 42 80 6 . Critical Kills 15 | . . . 1 . . . 2 . . 1 . 3 6 2 . Critical Parts Destroyed 23 | . . . 2 . . . . 3 1 3 . 4 9 1 . Critical Strikes 77 | . . 2 7 . . 2 3 21 2 9 . 11 17 3 . Burn 35 | . . 2 4 . . 2 1 18 1 5 . 2 . . . Destroy 42 | . . . 3 . . . 2 3 1 4 . 9 17 3 . Melee Attacks . | . . . . . . . . . . . . . . . . Impact . | . . . . . . . . . . . . . . . . Slashing . | . . . . . . . . . . . . . . . . Piercing . | . . . . . . . . . . . . . . . . Sneak Attacks . | . . . . . . . . . . . . . . . . Combat Hostiles . | . . . . . . . . . . . . . . . . Follow-up Attacks . | . . . . . . . . . . . . . . . . Damage Inflicted 26645 | . 472 1403 1674 105 295 842 1222 6828 789 2878 . 3704 5933 500 . Guns 26535 | . 407 1367 1674 105 295 842 1222 6819 789 2878 . 3704 5933 500 . Cannons . | . . . . . . . . . . . . . . . . Explosions 92 | . 65 27 . . . . . . . . . . . . . Melee . | . . . . . . . . . . . . . . . . Ramming 18 | . . 9 . . . . . 9 . . . . . . . Kinetic 20388 | . 209 1009 1173 66 198 605 934 5431 681 2381 . 2880 4466 355 . Thermal 6174 | . 198 385 501 39 97 237 288 1388 108 497 . 824 1467 145 . Explosive 65 | . 65 . . . . . . . . . . . . . . Electromagnetic . | . . . . . . . . . . . . . . . . Impact . | . . . . . . . . . . . . . . . . Slashing . | . . . . . . . . . . . . . . . . Piercing . | . . . . . . . . . . . . . . . . Highest Corruption 2 | . . . . . . . . 2 1 1 1 1 1 1 1 Average Corruption 1 | . . . . . . . . 1 1 1 1 1 1 1 1 Corruption Purged 2 | . . . . . . . . 2 . . . . . . . Corruption Blocked . | . . . . . . . . . . . . . . . . Effects 22 | . . . . . . . . 8 4 3 . 2 3 2 . Message Errors 5 | . . . . . . . . 4 1 . . . . . . Matter Fused 3 | . . . . . . . . 2 . . . . 1 . . Heat Flow Errors 3 | . . . . . . . . . 2 . . . 1 . . Energy Discharges 6 | . . . . . . . . 2 . 1 . 1 . 2 . Parts Rejected 1 | . . . . . . . . . 1 . . . . . . Data Loss (minor) 2 | . . . . . . . . . . 1 . . 1 . . Data Loss (major) 1 | . . . . . . . . . . . . 1 . . . Alerts 1 | . . . . . . . . . . 1 . . . . . Overload Shots . | . . . . . . . . . . . . . . . . Overflow Damage . | . . . . . . . . . . . . . . . . Projectiles . | . . . . . . . . . . . . . . . . Explosions . | . . . . . . . . . . . . . . . . Melee . | . . . . . . . . . . . . . . . . Knockbacks . | . . . . . . . . . . . . . . . . Impact . | . . . . . . . . . . . . . . . . Kinetic . | . . . . . . . . . . . . . . . . Secondary . | . . . . . . . . . . . . . . . . Self-Inflicted Damage 116 | . . 4 . . . . . 4 . . . . 108 . . Shots 2 | . . . . . . . . . . . . . 2 . . Rammed 3 | . . 2 . . . . . 1 . . . . . . . Targets Rammed 3 | . . 2 . . . . . 1 . . . . . . . Kicked . | . . . . . . . . . . . . . . . . Crushed . | . . . . . . . . . . . . . . . . Highest Temperature 412 | . . . 9 . 60 195 412 207 176 . . . . . . Average Temperature 79 | . . . 6 . 18 75 125 67 73 . . . . . . Received Heat Transfer 2655 | . 180 279 255 . 133 357 . 708 120 230 . 192 201 . . Siege Activations . | . . . . . . . . . . . . . . . . Martial Activations . | . . . . . . . . . . . . . . . . Shielding Activations . | . . . . . . . . . . . . . . . . Robots Disrupted . | . . . . . . . . . . . . . . . . Combat Hostiles . | . . . . . . . . . . . . . . . . Robots Corrupted . | . . . . . . . . . . . . . . . . Combat Hostiles . | . . . . . . . . . . . . . . . . Parts Fried . | . . . . . . . . . . . . . . . . Impact Corruptions . | . . . . . . . . . . . . . . . . Robots Melted 2 | . . . . . . . . 2 . . . . . . . Combat Hostiles 2 | . . . . . . . . 2 . . . . . . . Parts Melted 34 | . . 3 3 . 1 1 . 14 1 5 . 4 2 . . Heat Transferred 16918 | . 592 1271 1712 111 236 850 900 5500 400 1700 . 1796 1665 185 . Parts Sabotaged 2 | . . . . . . . . 2 . . . . . . . Parts Stolen . | . . . . . . . . . . . . . . . . Parts Stripped . | . . . . . . . . . . . . . . . . Power Chain Reactions . | . . . . . . . . . . . . . . . . Alert | -11 -10 -9 -9 -9 -9 -6 -6 -6 -6 -6 -6 -5 -5 -5 -5 ------- Run | Yrd Mat Mat Sto Rec Scr Fac Was Fac Low Low Dat Pro Fac Upp Upp Maximum Alert Level 5 | . . 1 3 1 . . . 5 . . . . 5 . . Low Security (%) 28 | 100 100 57 12 94 . 100 100 3 . . . . . . . Level 1 5 | . . 42 14 5 . . . 1 . . . . . . . Level 2 5 | . . . 32 . . . . 6 . . . . . . . Level 3 16 | . . . 40 . . . . 12 . . . . 40 . . Level 4 11 | . . . . . . . . 20 . . . . 10 . . Level 5 25 | . . . . . . . . 54 . . . . 6 . . High Security 7 | . . . . . . . . . . . . . 42 . . Max Security . | . . . . . . . . . . . . . . . . Peak Influence 3524 | . 148 359 912 346 . 74 10 3524 . . . . 3156 . . Initial 772 | . . 57 151 346 . . 10 . . . . . 772 . . Average 1173 | . 68 180 600 26 . 38 . 1818 . . . . 1608 . . Influence Increases 11457 | . 268 556 1033 40 . 191 1 4776 140 455 . 425 3552 20 . Destroy 0b10 Robot/C 4660 | . 180 380 720 40 . 100 . 1620 120 400 . 360 720 20 . Destroy 0b10 Robot/NC 145 | . 5 10 25 . . . . 65 . . . 5 35 . . Destroy Leader 954 | . 40 110 164 . . 30 . 352 20 40 . 30 168 . . Allied During Kill 1555 | . . . 102 . . . . 1453 . . . . . . . Successful Hack 94 | . 15 8 . . . 14 . 57 . . . . . . . Disable Machine 360 | . . 30 15 . . . . 105 . . . . 210 . . Anti-Garrison Action 350 | . . . . . . . . 200 . . . . 150 . . Destroy Structure 574 | . 13 18 7 . . 2 1 139 . . . . 394 . . Advance Influence 600 | . . . . . . . . . . . . . 600 . . Partial Spotted 30 | . . . . . . . . . . . . . 30 . . Lose Combat Pursuer 1035 | . 15 . . . . 45 . 285 . 15 . 30 645 . . Active Sensor Use 1100 | . . . . . . . . 500 . . . . 600 . . Influence Decreases 9872 | . 130 335 502 930 . 160 32 1253 1454 634 2030 150 671 1218 373 Entered New Map 6252 | . . 81 208 544 . . 21 . 1304 420 2030 . 103 1168 373 Time Decay 2460 | . 130 254 254 86 . 160 11 693 140 214 . 150 318 50 . Search Patrol Dispatched 100 | . . . . . . . . . . . . . 100 . . Lost Part 10 | . . . . . . . . . 10 . . . . . . Lost Ally 300 | . . . 40 . . . . 260 . . . . . . . Purge Threat 750 | . . . . 300 . . . 300 . . . . 150 . . Squads Dispatched 96 | . 2 2 8 . . . . 48 . . . 1 35 . . Investigation 26 | . 1 . 2 . . . . 13 . . . . 10 . . Extermination 9 | . . . . . . . . 7 . . . . 2 . . Reinforcement 19 | . 1 2 1 . . . . 9 . . . . 6 . . Assault 31 | . . . 2 . . . . 12 . . . 1 16 . . Garrison 11 | . . . 3 . . . . 7 . . . . 1 . . Intercept . | . . . . . . . . . . . . . . . . Searches Triggered 1 | . . . . . . . . . . . . . 1 . . Construction Impeded 3 | . . . . . . . . 2 . . . . 1 . . Haulers Reinforced 2 | . . . . . . . . 2 . . . . . . . Active Scanning Responses 11 | . . . . . . . . 5 . . . . 6 . . Cargo Convoy Interrupts 1 | . . . . . . . . 1 . . . . . . . Stealth | -11 -10 -9 -9 -9 -9 -6 -6 -6 -6 -6 -6 -5 -5 -5 -5 --------- Run | Yrd Mat Mat Sto Rec Scr Fac Was Fac Low Low Dat Pro Fac Upp Upp Distress Signals 10 | . . 2 1 . . . . 4 . . . 2 1 . . Communications Jammed . | . . . . . . . . . . . . . . . . Distress Signals . | . . . . . . . . . . . . . . . . Times Spotted 328 | . 14 23 44 1 9 13 1 95 6 21 . 20 76 1 4 Peak Tracking Total 12 | . 5 4 11 1 6 8 1 8 3 5 . 9 12 1 . Tactical Retreats 32 | . 2 2 1 . . 2 . 9 . 1 . 2 13 . . ECM-based Alert Blocks 5 | . 1 2 2 . . . . . . . . . . . . Traps | -11 -10 -9 -9 -9 -9 -6 -6 -6 -6 -6 -6 -5 -5 -5 -5 ------- Run | Yrd Mat Mat Sto Rec Scr Fac Was Fac Low Low Dat Pro Fac Upp Upp Traps Triggered 12 | . 2 1 2 . . 1 . 5 . . . . 1 . . Indirectly . | . . . . . . . . . . . . . . . . Trap Hack Attempts . | . . . . . . . . . . . . . . . . Triggered . | . . . . . . . . . . . . . . . . Disarmed . | . . . . . . . . . . . . . . . . Reprogrammed . | . . . . . . . . . . . . . . . . Reused . | . . . . . . . . . . . . . . . . Traps Extracted . | . . . . . . . . . . . . . . . . Installed . | . . . . . . . . . . . . . . . . Triggered . | . . . . . . . . . . . . . . . . Machines | -11 -10 -9 -9 -9 -9 -6 -6 -6 -6 -6 -6 -5 -5 -5 -5 ---------- Run | Yrd Mat Mat Sto Rec Scr Fac Was Fac Low Low Dat Pro Fac Upp Upp Machines Disabled 29 | . . 2 1 . . . . 7 . 3 . 1 15 . . Max in Single Turn 3 | . . 2 1 . . . . 2 . 2 . 1 3 . . Garrison Access 2 | . . . . . . . . 1 . . . . 1 . . Machines Repaired . | . . . . . . . . . . . . . . . . Machines Dismantled . | . . . . . . . . . . . . . . . . Machines Sabotaged . | . . . . . . . . . . . . . . . . Overloaded Fab Kills . | . . . . . . . . . . . . . . . . Hacking | -11 -10 -9 -9 -9 -9 -6 -6 -6 -6 -6 -6 -5 -5 -5 -5 --------- Run | Yrd Mat Mat Sto Rec Scr Fac Was Fac Low Low Dat Pro Fac Upp Upp Machines Accessed 64 | . 3 4 4 5 10 3 . 18 . 3 4 . 10 . . Terminals 25 | . 3 3 4 3 . 2 . 7 . . . . 3 . . Fabricators 2 | . . . . . . 1 . . . . . . 1 . . Repair Stations 3 | . . . . . . . . 2 . . . . 1 . . Recycling Units 7 | . . . . . . . . 5 . . . . 2 . . Scanalyzers 7 | . . 1 . . . . . 3 . . . . 3 . . Garrison Access 1 | . . . . . . . . 1 . . . . . . . Total Hacks 256 | . 7 11 7 31 81 4 . 48 . 7 31 . 29 . . Successful 195 | . 3 6 1 28 81 2 . 21 . 7 31 . 15 . . Failed 59 | . 4 4 6 3 . 2 . 26 . . . . 14 . . Catastrophic 8 | . . 1 1 . . 1 . 5 . . . . . . . Database Lockouts 2 | . . 1 . . . . . 1 . . . . . . . Manual 44 | . . 3 1 4 . 2 . 25 . . . . 9 . . Terminals 62 | . 7 8 7 6 . 3 . 20 . . . . 11 . . Fabricators 4 | . . . . . . 1 . . . . . . 3 . . Repair Stations 8 | . . . . . . . . 5 . . . . 3 . . Recycling Units 13 | . . . . . . . . 8 . . . . 5 . . Scanalyzers 22 | . . 3 . . . . . 12 . . . . 7 . . Garrison Access 3 | . . . . . . . . 3 . . . . . . . Terminal Hacks 165 | . 3 4 1 27 81 . . 8 . 7 31 . 3 . . Record 121 | . . 3 . 24 75 . . 3 . 5 11 . . . . Part Schematic 12 | . . . . . . . . 1 . . 11 . . . . Robot Schematic 6 | . . . . . . . . . . . 6 . . . . Robot Analysis 5 | . . . . . 5 . . . . . . . . . . Prototype ID Bank 5 | . 2 . . . . . . . . . 3 . . . . Open Door 3 | . . . 1 . . . . . . 2 . . . . . Branch Access Points 2 | . . 1 . . . . . 1 . . . . . . . Repair Station Index 1 | . . . . . . . . 1 . . . . . . . Scanalyzer Index 1 | . . . . . . . . . . . . . 1 . . Unreport Threat 5 | . . . . 2 . . . 2 . . . . 1 . . Recall Investigation 1 | . . . . . . . . . . . . . 1 . . Zone Layout 1 | . 1 . . . . . . . . . . . . . . Proto ID Catalog 1 | . . . . . 1 . . . . . . . . . . Release Object 1 | . . . . 1 . . . . . . . . . . . Fabricator Hacks 3 | . . . . . . 1 . . . . . . 2 . . Network Status 1 | . . . . . . 1 . . . . . . . . . Load Schematic 1 | . . . . . . . . . . . . . 1 . . Build 1 | . . . . . . . . . . . . . 1 . . Repair Station Hacks 4 | . . . . . . . . 2 . . . . 2 . . Scan Component 2 | . . . . . . . . 1 . . . . 1 . . Repair 2 | . . . . . . . . 1 . . . . 1 . . Recycling Unit Hacks . | . . . . . . . . . . . . . . . . Scanalyzer 13 | . . 2 . . . . . 6 . . . . 5 . . Retrieve Study 13 | . . 2 . . . . . 6 . . . . 5 . . Garrison Access Hacks . | . . . . . . . . . . . . . . . . Unauthorized Hacks 10 | . . . . 1 . 1 . 5 . . . . 3 . . Terminals 4 | . . . . 1 . 1 . 1 . . . . 1 . . Botnet 4 | . . . . 1 . 1 . 1 . . . . 1 . . Fabricators . | . . . . . . . . . . . . . . . . Repair Stations . | . . . . . . . . . . . . . . . . Recycling Units 5 | . . . . . . . . 3 . . . . 2 . . Fedlink 5 | . . . . . . . . 3 . . . . 2 . . Scanalyzers . | . . . . . . . . . . . . . . . . Garrison Access 1 | . . . . . . . . 1 . . . . . . . Jam 1 | . . . . . . . . 1 . . . . . . . Data Cores Recovered 1 | . . . . . . . . 1 . . . . . . . Used . | . . . . . . . . . . . . . . . . Hacking Detections 37 | . 2 3 3 3 . 2 . 16 . . . . 8 . . Full Trace Events 6 | . . . 2 . . . . 2 . . . . 2 . . Feedback Events . | . . . . . . . . . . . . . . . . Feedback Blocked . | . . . . . . . . . . . . . . . . Robot Schematics Acquired 6 | . . . . . . . . . . . 6 . . . . Robots Built . | . . . . . . . . . . . . . . . . Authchips . | . . . . . . . . . . . . . . . . Time . | . . . . . . . . . . . . . . . . Total Robot Build Rating . | . . . . . . . . . . . . . . . . Part Schematics Acquired 12 | . . . . . . . . 1 . . 11 . . . . Parts Built 1 | . . . . . . . . . . . . . 1 . . Authchips . | . . . . . . . . . . . . . . . . Time 152 | . . . . . . . . . . . . . 152 . . Total Part Build Rating 5 | . . . . . . . . . . . . . 5 . . Part Studies Acquired 8 | . . 2 . . . . . 3 . . . . 3 . . Parts Repaired 2 | . . . . . . . . 1 . . . . 1 . . Time 142 | . . . . . . . . 47 . . . . 95 . . Parts Recycled . | . . . . . . . . . . . . . . . . Recycled Matter . | . . . . . . . . . . . . . . . . Retrieved Matter . | . . . . . . . . . . . . . . . . Retrieved Components . | . . . . . . . . . . . . . . . . Parts Scanalyzed . | . . . . . . . . . . . . . . . . Part Schematics Acquired . | . . . . . . . . . . . . . . . . Parts Damaged . | . . . . . . . . . . . . . . . . Bothacking | -11 -10 -9 -9 -9 -9 -6 -6 -6 -6 -6 -6 -5 -5 -5 -5 ------------ Run | Yrd Mat Mat Sto Rec Scr Fac Was Fac Low Low Dat Pro Fac Upp Upp Used RIF Installer . | . . . . . . . . . . . . . . . . Robots Hacked . | . . . . . . . . . . . . . . . . Non-combat . | . . . . . . . . . . . . . . . . Combat . | . . . . . . . . . . . . . . . . Robot Hacks Applied . | . . . . . . . . . . . . . . . . Relay Couplers Released . | . . . . . . . . . . . . . . . . Fabnet Peak Effective % . | . . . . . . . . . . . . . . . . Robots Rewired . | . . . . . . . . . . . . . . . . Allies Hacked . | . . . . . . . . . . . . . . . . Hacks Repelled . | . . . . . . . . . . . . . . . . Allies | -11 -10 -9 -9 -9 -9 -6 -6 -6 -6 -6 -6 -5 -5 -5 -5 -------- Run | Yrd Mat Mat Sto Rec Scr Fac Was Fac Low Low Dat Pro Fac Upp Upp Total Allies 22 | . . . 2 . . . 20 . . . . . . . . Largest Group 20 | . . . 2 . . . 20 20 . . . . . . . Highest-Rated Group 720 | . . . 62 . . . 720 720 . . . . . . . Highest-Rated Ally 50 | . . . 31 . . . 50 50 . . . . . . . Total Orders . | . . . . . . . . . . . . . . . . Ally Attacks 353 | . . . 55 . . . 8 290 . . . . . . . Total Damage 8515 | . . . 734 . . . 122 7659 . . . . . . . Kills 59 | . . . 14 . . . 1 44 . . . . . . . Allies Corrupted 2 | . . . . . . . . 2 . . . . . . . Allies Melted 3 | . . . . . 3 . . . . . . . . . . Intel | -11 -10 -9 -9 -9 -9 -6 -6 -6 -6 -6 -6 -5 -5 -5 -5 ------- Run | Yrd Mat Mat Sto Rec Scr Fac Was Fac Low Low Dat Pro Fac Upp Upp Active Infowar (turns) 9321 | . 152 552 541 362 1226 342 456 3243 287 455 27 334 1237 106 1 A.S.S. 4287 | . . . . . . . . 1840 287 455 27 334 1237 106 1 Terrain 22 | . 22 . . . . . . . . . . . . . . Structural 6826 | . . . . . 339 342 456 3243 287 455 27 334 1237 106 . ECM 2472 | . 130 552 541 362 887 . . . . . . . . . . Robot Analysis Total 5 | . . . . . 5 . . . . . . . . . . Derelict Logs Recovered 5 | . . . . . . . . . 1 2 . 2 . . . Drone Launches . | . . . . . . . . . . . . . . . . Drone Recoveries . | . . . . . . . . . . . . . . . . Exploration | -11 -10 -9 -9 -9 -9 -6 -6 -6 -6 -6 -6 -5 -5 -5 -5 ------------- Run | Yrd Mat Mat Sto Rec Scr Fac Was Fac Low Low Dat Pro Fac Upp Upp Turns Passed 9778 | 42 348 552 541 362 1445 342 456 3243 287 455 27 334 1237 106 1 Spaces Moved 9817 | 38 256 325 343 360 1553 263 297 1928 695 687 85 381 2337 269 . Core 3 | 3 . . . . . . . . . . . . . . . Treads 1262 | . . . . . . . 35 1227 . . . . . . . Legs 1 | . . . . . . . . 1 . . . . . . . Wheels 4032 | 35 256 325 343 360 1553 263 262 635 . . . . . . . Hover . | . . . . . . . . . . . . . . . . Flight 4519 | . . . . . . . . 65 695 687 85 381 2337 269 . Fastest Speed 32 | 50 90 90 90 90 90 90 90 32 32 32 32 32 32 33 . Average Speed 73 | 86 90 94 90 90 90 90 110 132 32 32 32 32 32 33 . Slowest Speed 260 | 90 90 95 105 90 90 90 160 260 32 32 32 32 33 33 . Overloaded Moves . | . . . . . . . . . . . . . . . . Propulsion Burnouts . | . . . . . . . . . . . . . . . . Robots Hopped 12 | . . . . . . . . . . . . . 12 . . Potential Cave-ins 4 | . . . . . . . . . . . . . 4 . . Cave-ins Triggered . | . . . . . . . . . . . . . . . . Exploration Rate (%) 56 | 4 53 48 65 81 87 11 97 58 84 75 73 65 50 50 1 Regions Visited 15 Branch Regions 9 Pre-discovered Areas 9 | . . . . . 4 . . 1 . 2 1 1 . . . Known Exits Taken 9 | . . 1 . . 1 . . 1 1 1 1 1 1 1 . Unknown Exits Taken 4 | 1 1 . 1 1 . . . . . . . . . . . Scrap Searched 16 | . . . . . 9 . . . 2 2 . 1 . 2 . Spaces Dug 28 | . . . . . . . . 3 . 4 . . 21 . . Terrain Destroyed 499 | . 12 16 5 . . . 3 65 6 69 . 69 244 10 . Melee . | . . . . . . . . . . . . . . . . Projectile 340 | . . . . . . . 3 64 6 69 . 69 119 10 . AOE 158 | . 12 16 5 . . . . . . . . . 125 . . Terrain Rammed . | . . . . . . . . . . . . . . . . Walls Destroyed . | . . . . . . . . . . . . . . . . Machines Disabled . | . . . . . . . . . . . . . . . . Actions | -11 -10 -9 -9 -9 -9 -6 -6 -6 -6 -6 -6 -5 -5 -5 -5 --------- Run | Yrd Mat Mat Sto Rec Scr Fac Was Fac Low Low Dat Pro Fac Upp Upp Total 11337 | 44 317 457 452 391 1580 309 385 2357 730 831 84 478 2647 274 1 Wait 560 | . 17 24 12 20 . 2 38 174 11 46 . 9 207 . . Move 9779 | 37 255 324 342 359 1552 263 296 1927 694 686 84 380 2312 268 . Hop 12 | . . . . . . . . . . . . . 12 . . Pick Up 14 | 1 1 . . . 2 . 4 5 . 1 . . . . . Fast Attach 47 | 6 2 3 5 . 4 . 2 15 2 3 . 1 4 . . Attach 2 | . . . . . . . 1 1 . . . . . . . Detach . | . . . . . . . . . . . . . . . . Swap 37 | . 5 7 7 1 2 2 2 7 . . . . 3 . 1 Drop 43 | . 3 6 2 1 3 2 5 11 1 3 . 1 5 . . Fire 469 | . 29 52 52 3 8 27 17 101 11 36 . 46 81 6 . Melee . | . . . . . . . . . . . . . . . . Ram 3 | . . 2 . . . . . 1 . . . . . . . Kick . | . . . . . . . . . . . . . . . . Crush . | . . . . . . . . . . . . . . . . Escape Stasis 3 | . . . . . . . . 3 . . . . . . . Rewire 1 | . . . . . . . 1 . . . . . . . . Trap . | . . . . . . . . . . . . . . . . Miscellaneous 367 | . 5 39 32 7 9 13 19 112 11 56 . 41 23 . . Route ------- -11/Scrapyard -10/Materials (discovered 2 exits: *Mat x2) -9/Materials (discovered 4 exits: *Min x2 / *Sto x2) -9/Storage (discovered 2 exits: [*Mat] / *Rec) -9/Recycling (discovered 2 exits: [*Fac] / *Scr) -9/Scraptown (discovered 2 exits: *Fac x2) -6/Factory (discovered 6 exits: *Fac x3 / Low x2 / Ext) -6/Waste -6/Factory (discovered 8 exits: *Fac x4 / *Low x2 / Ext x2) -6/Lower Caves -6/Lower Caves (discovered 2 exits: *Fac / *Dat) -6/Data Miner -5/Proximity Caves -5/Factory (discovered 5 exits: *Fac x3 / *Upp x2) -5/Upper Caves -5/Upper Caves (discovered 1 exit: Fac) History --------- Turn | Location | Event 7 | -11/Scrapyard | Upgraded with Power slot (x1) 7 | -11/Scrapyard | Upgraded with Propulsion slot (x1) 7 | -11/Scrapyard | Upgraded with Utility slot (x1) 7 | -11/Scrapyard | Upgraded with Weapon slot (x1) 14 | -11/Scrapyard | Discovered new exit (range 16) 43 | -11/Scrapyard | Entered Materials 184 | -10/Materials | Discovered new exit (range 8) 216 | -10/Materials | Core integrity fell below 50% 301 | -10/Materials | Build established: Mutant 323 | -10/Materials | Discovered new exit (range 18) 391 | -10/Materials | Entered another Materials area 393 | -9/Materials | Reached level 2 449 | -9/Materials | Core integrity fell below 50% 488 | -9/Materials | Upgraded with Weapon slot (x1) 531 | -9/Materials | Identified exit to Mines 531 | -9/Materials | Identified exit to Storage 543 | -9/Materials | Reached level 3 641 | -9/Materials | Upgraded with Utility slot (x1) 787 | -9/Materials | Reached level 4 932 | -9/Materials | Central database locked down 943 | -9/Materials | Entered Storage 945 | -9/Storage | Reached level 5 1002 | -9/Storage | Met a pair of Derelict thieves 1006 | -9/Storage | Upgraded with Utility slot (x1) 1079 | -9/Storage | Reached level 6 1089 | -9/Storage | Garrison activated, responded to threat 1148 | -9/Storage | Destroyed 9 combat bots 1214 | -9/Storage | Reached level 7 1289 | -9/Storage | Discovered new exit (range 13) 1404 | -9/Storage | Reached level 8 1480 | -9/Storage | Used back door to open Recycling access 1480 | -9/Storage | Discovered new exit (range 4) 1484 | -9/Storage | Entered Recycling 1485 | -9/Recycling | Met a Zionite searching for Scraptown 1575 | -9/Recycling | Build established: Scavenger-Gunner 1727 | -9/Recycling | Discovered new exit (range 12) 1817 | -9/Recycling | Scanned before Scraplab entrance 1831 | -9/Recycling | Entered Scraplab 1843 | -9/Recycling | Discovered new exit (range 3) 1846 | -9/Recycling | Entered Scraptown 1848 | -9/Scraptown | Reached level 9 1923 | -9/Scraptown | Build established: Gunner 1983 | -9/Scraptown | Discovered new exit (range 7) 2024 | -9/Scraptown | Heard Great Nut preacher, LISTEN AND RECITE! 2057 | -9/Scraptown | Visited Science Testing Area 2070 | -9/Scraptown | Visited Cyclists 2106 | -9/Scraptown | Visited UFD Registry 2111 | -9/Scraptown | Registered with UFD as "Cogblaster" 2129 | -9/Scraptown | Entered Cyclist Reading Room 2180 | -9/Scraptown | Visited Bundlers 2243 | -9/Scraptown | Visited Cave Peace 2303 | -9/Scraptown | Upgraded with Utility slot (x1) 2394 | -9/Scraptown | Visited Curators Association 2419 | -9/Scraptown | Visited Botcube Research 2638 | -9/Scraptown | Visited DA-N13 Charitable Foundation 2642 | -9/Scraptown | Found DCF Scrap (32 items) 2668 | -9/Scraptown | Visited Derelict Rescue Squad 2688 | -9/Scraptown | Visited Science Guys 2721 | -9/Scraptown | Visited A0-MCA Data Center 2727 | -9/Scraptown | Given an S rating by A0-MCA 2733 | -9/Scraptown | Found A0-MCA's Component Scanner 2738 | -9/Scraptown | Upgraded with Utility slot (x1) 2738 | -9/Scraptown | Found Expert System 2758 | -9/Scraptown | Visited Analyses Database 2779 | -9/Scraptown | Visited Cartography Club 2899 | -9/Scraptown | Learned location of Extension (-6) 2899 | -9/Scraptown | Learned location of Hub_04(d) (-6) 2899 | -9/Scraptown | Learned 8 Materials zone layouts 2899 | -9/Scraptown | Learned 24 Factory zone layouts 2899 | -9/Scraptown | Learned 4 Mines zone layouts 2899 | -9/Scraptown | Learned 8 Lower Caves zone layouts 2899 | -9/Scraptown | Learned 12 Lower Caves zone layouts 2899 | -9/Scraptown | Learned 20 Lower Caves zone layouts 2899 | -9/Scraptown | Learned 8 Proximity Caves zone layouts 2899 | -9/Scraptown | Learned 12 Proximity Caves zone layouts 2899 | -9/Scraptown | Learned 4 Hub_04(d) zone layouts 2899 | -9/Scraptown | Learned Factory emergency access door positions 2899 | -9/Scraptown | Learned location of 1 exit from Research 2899 | -9/Scraptown | Learned location of 3 exits from Lower Caves 2899 | -9/Scraptown | Learned location of 1 exit from Proximity Caves 2899 | -9/Scraptown | Identified exit to Factory 2952 | -9/Scraptown | Found Deep Structural Scanner 3032 | -9/Scraptown | Visited Chapter 10 3153 | -9/Scraptown | Met Optimus 3153 | -9/Scraptown | Accepted into 0bPrime 3217 | -9/Scraptown | Civil war broke out across Scraptown 3290 | -9/Scraptown | Found Scrap Suit 3291 | -9/Scraptown | Entered Factory 3292 | -6/Factory | Identified exit to Factory 3293 | -6/Factory | Identified exit to Lower Caves 3293 | -6/Factory | Identified exit to Extension 3293 | -6/Factory | Reached level 10 3304 | -6/Factory | Lost 7 allies 3607 | -6/Factory | Core integrity fell below 50% 3633 | -6/Factory | Sucked down chute 3633 | -6/Factory | Entered Waste 3634 | -6/Waste | Joined by Warlord forces that had cleared the area 3659 | -6/Waste | Upgraded with Weapon slot (x1) 3904 | -6/Waste | Upgraded with Utility slot (x1) 3914 | -6/Waste | Discovered new exit (range 17) 4013 | -6/Waste | A Compactor rumbled back to life 4013 | -6/Waste | Spotted C-40 Crusher 4015 | -6/Waste | Allies destroyed C-40 Crusher 4067 | -6/Waste | Identified exit to Factory 4089 | -6/Waste | Entered Factory 4089 | -6/Factory | Accompanied by 20 allies 4170 | -6/Factory | Garrison activated, responded to threat 4170 | -6/Factory | Reached level 11 4248 | -6/Factory | Reached level 12 4338 | -6/Factory | Loaded intel: 8 recycling unit locations 4370 | -6/Factory | Reached level 13 4439 | -6/Factory | First assault squad dispatched 4457 | -6/Factory | Discovered exit to Factory (range 17) 4479 | -6/Factory | Discovered exit to Factory (range 13) 4535 | -6/Factory | Reached level 14 4582 | -6/Factory | Repaired Broken Impulse Thruster Array 4595 | -6/Factory | Lost 3 allies 4602 | -6/Factory | Upgraded with Propulsion slot (x2) 4633 | -6/Factory | Reached level 15 4897 | -6/Factory | Reached level 16 5109 | -6/Factory | Discovered exit to Factory (range 15) 5141 | -6/Factory | Learned location of Protoforge (-2) 5142 | -6/Factory | Garrison activated, responded to threat 5232 | -6/Factory | Build established: Scientist-Gunner 5287 | -6/Factory | Reached level 17 5381 | -6/Factory | Central database locked down 5392 | -6/Factory | Discovered exit to Lower Caves (range 16) 5450 | -6/Factory | Cargo convoy interrupted 5490 | -6/Factory | Upgraded with Utility slot (x2) 5492 | -6/Factory | Found Active Sensor Suite 5585 | -6/Factory | Discovered exit to Factory (range 18) 5675 | -6/Factory | Reached level 18 6027 | -6/Factory | Reached level 19 6038 | -6/Factory | Build established: Scientist-Tank 6068 | -6/Factory | Lost 3 allies 6438 | -6/Factory | Found PL-3XN's Ring of Power 6479 | -6/Factory | Upgraded with Utility slot (x1) 6479 | -6/Factory | Found Exp. Hacking Suite 6736 | -6/Factory | Build established: Hacker-Skirmisher 6912 | -6/Factory | Garrison activated, responded to threat 6930 | -6/Factory | Reached level 20 7152 | -6/Factory | Noticed a derelict Sapper rigging charges 7268 | -6/Factory | Upgraded with Propulsion slot (x1) 7332 | -6/Factory | Entered Lower Caves 7333 | -6/Lower Caves | Identified exit to Lower Caves 7582 | -6/Lower Caves | Build established: Hacker-Scout 7606 | -6/Lower Caves | Encountered a Warlord checkpoint 7611 | -6/Lower Caves | Learned Factory stockpile data 7619 | -6/Lower Caves | Entered another Lower Caves area 7620 | -6/Lower Caves | Identified exit to Data Miner 7650 | -6/Lower Caves | Expert System configures itself against Grunt targets 7727 | -6/Lower Caves | Destroyed 11 combat bots 7732 | -6/Lower Caves | Learned Factory emergency access door positions 7817 | -6/Lower Caves | Attacked by a delusional Derelict stockpiling parts 7978 | -6/Lower Caves | Learned location of 1 exit from Research 7978 | -6/Lower Caves | Learned Extension emergency access door positions 8026 | -6/Lower Caves | Encountered a Warlord checkpoint 8065 | -6/Lower Caves | Found Alien Artifact 8074 | -6/Lower Caves | Entered Data Miner 8074 | -6/Data Miner | Discovered new exit (range 6) 8080 | -6/Data Miner | Met Data Miner 8086 | -6/Data Miner | Learned location of Section 7 (-2) 8086 | -6/Data Miner | Acquired the access code to Warlord's prototype stash 8092 | -6/Data Miner | Received God Mode back door access code from Data Miner 8101 | -6/Data Miner | Identified exit to Proximity Caves 8101 | -6/Data Miner | Entered Proximity Caves 8103 | -5/Proximity Caves | Reached level 21 8176 | -5/Proximity Caves | Learned Factory security intel 8179 | -5/Proximity Caves | Attracted the attention of an 0b10 checkpoint 8226 | -5/Proximity Caves | Spotter reported a threat 8233 | -5/Proximity Caves | Spotter reported a threat 8242 | -5/Proximity Caves | Attracted the attention of an 0b10 outpost 8279 | -5/Proximity Caves | Spotter reported a threat 8339 | -5/Proximity Caves | Spotter reported a threat 8435 | -5/Proximity Caves | Entered Factory 8436 | -5/Factory | Identified exit to Upper Caves 8437 | -5/Factory | Reached level 22 8537 | -5/Factory | Upgraded with Utility slot (x1) 8579 | -5/Factory | Discovered new exit (range 18) 8678 | -5/Factory | Repaired Broken Hyp. Railgun? 8769 | -5/Factory | Identified exit to Factory 8908 | -5/Factory | Loaded intel: 8 recycling unit locations 9035 | -5/Factory | Search patrols dispatched 9063 | -5/Factory | Reached level 23 9121 | -5/Factory | Destroyed 11 combat bots 9147 | -5/Factory | High security lockdown imminent 9151 | -5/Factory | Fabricated Lgt. Regenerative Plating? 9211 | -5/Factory | Destroyed 7 combat bots 9227 | -5/Factory | High security lockdown engaged 9256 | -5/Factory | Discovered exit to Factory (range 13) 9331 | -5/Factory | Spotted B-75 Beast 9337 | -5/Factory | Destroyed B-75 Beast 9397 | -5/Factory | Core integrity fell below 50% 9511 | -5/Factory | Allied Derelicts emerged from ambush trap array 9570 | -5/Factory | Core integrity fell below 20% 9581 | -5/Factory | Discovered exit to Factory (range 17) 9672 | -5/Factory | Entered Upper Caves 9673 | -5/Upper Caves | Identified exit to Upper Caves 9695 | -5/Upper Caves | Encountered a Warlord checkpoint 9751 | -5/Upper Caves | Attracted the attention of an 0b10 checkpoint 9778 | -5/Upper Caves | Entered another Upper Caves area 9778 | -5/Upper Caves | Discovered exit to Factory (range 16) 9778 | -5/Upper Caves | Identified Core Expander 9778 | -5/Upper Caves | Installed Core Expander, added new Propulsion slot 9779 | -5/Upper Caves | Destroyed by S-27 Virus with Autogun Last Messages --------------- 09749_ Destroyed KE Penetrator. 09751_ Y-64 Sentinel: "INTERCEPTING UNREGISTERED DERELICT." 09752_ Slug penetrates Y-64 Sentinel. 09752_ HV Slug penetrates Y-64 Sentinel. 09752_ Y-64 Sentinel suffers critical hit (Destroy). 09752_ Y-64 Sentinel destroyed. 09756_ Adv. Heat Sink fries itself beyond repair. 09757_ Acquired 90 matter. 09758_ Imp. Medium Armor Plating fries itself beyond repair. 09760_ Imp. Treads fries itself beyond repair. 09778_ EXIT=FOUND: FACTORY LOCATION=UPPER CAVES GOAL=ESCAPE 09778_ Identified Core Expander. 09778_ Core Expander installed, core expanded with Propulsion slot. Map ----- +----------------------------------------------------+ | ?????????????????????????????????????????????????? | | ?????????????????????????????????????????????????? | | ?????????????????????????????????????????????????? | | ?????????????????????????????????????????????????? | | ?????????????????????????????????????????????????? | | ?????????????????????????????????????????????????? | | ?????????????????????????????????????????????????? | | ?????????????????????????????????????????????????? | | ?????????????????????????????????????????????????? | | ????????k????????????????????????????????????????? | | ?????????????????????????????????????????????????? | | ?????????????????????????????????????????????????? | | ???????k?????????????????????????????????????????? | | ?????????????????????????????????????????????????? | | ?????????????????????????????????????????????????? | | ?????????????????????????????????????????????????? | | ?????????????????????????????????????????????????? | | ?????????????????????????????????????????????????? | | ??????????????????????? ###### ???????????????? | | ?????????????????????########### ??????????????? | | ?????????????????????############ ###?????????? | | ????????????????????############### ##?????????? | | ????????????????????###### s###### ?????????? | | ???????????????????? ### s ###### ?????????? | | ???????????????????? ### ## ?????????? | | ???????????????????? ## @ #### ### ?????????? | | ??????????????Y??g?? ###s s ### ### ?????????? | | ?????????????????g?? ###### ## ### ?????????? | | ?????????????????g?? ###### ?? ###??????? | | ?????????????????g?? # ### ##< #??????? | | ????????????????????? ##### ##??????? | | ????????????????????????????######## ####??????? | | ???????????????????????k????######### ###??????? | | ???????????ss???????????????????????## ####??????? | | ????????????????????????????????????#######??????? | | ?????????????????????????????????????????????????? | | ?????????????????????????????????????????????????? | | ?????????????????????????????????????????????????? | | ?????????????????????????????????????????????????? | | ?????????????????????????????????????????????????? | | ?????????????????????????????????????????????????? | | ?????????????????????????????????????????????????? | | ?????????????????????????????????????????????????? | | ?????????????????????????????????????????????????? | | ?????????????????????????????????????????????????? | | ?????????????????????????????????????????????????? | | ?????????????????????????????????????????????????? | | ?????????????????????????????????????????????????? | | ?????????????????????????????????????????????????? | | ?????????????????????????????????????????????????? | +----------------------------------------------------+ Best States ------------- Heat Dissipation 119 Energy Generation 35 Energy Capacity 460 Matter Stores 400 Matter Capacity 400 Sight Range 17 Robot Scan Range 24 Terrain Scan Range 16 Terrain Scan Density 10 ECM Strength 1 Base Temperature (-) 200 Armor Coverage 150 Resistance: KI 10 Resistance: TH 10 Resistance: EX 5 Weapon Cycling 20 Evasion (%) 63 Targeting Accuracy 6 Recoil Reduction 6 Kinecelleration 30 Offensive Hacking 21 Defensive Hacking 5 Item Schematics ----------------- Imp. Actuator Array | -6/Factory | Hacked Lgt. Regenerative Plating | -6/Data Miner | Free Enh. Armored Leg | -6/Data Miner | Free Combat Drone Bay | -6/Data Miner | Free Imp. Matter Compressor | -6/Data Miner | Free Shield Leg | -6/Data Miner | Free Thunder Hammer | -6/Data Miner | Free Adv. Cryofiber Web | -6/Data Miner | Free Hvy. Disruptor Cannon | -6/Data Miner | Free Imp. Dynamic Insulation System | -6/Data Miner | Free Imp. Linear Gravjet | -6/Data Miner | Free Biometal Leg | -6/Data Miner | Free Robot Schematics ------------------ G-50 Soldier | -6/Data Miner | Free X-62 Marksman | -6/Data Miner | Free W-44 Eye | -6/Data Miner | Free O-32 Director | -6/Data Miner | Free A-15 Conveyor | -6/Data Miner | Free I-47 Archangel | -6/Data Miner | Free Fabricated ------------ Lgt. Regenerative Plating | x1 | -5/Factory Repaired ---------- Impulse Thruster Array | 62% | -6/Factory | Broken Hyp. Railgun | 9% | -5/Factory | Broken Studied --------- Arm. Wheel | -9/Materials | Hacked Hvy. Assault Rifle | -9/Materials | Hacked Lgt. Angular Momentum Engine | -6/Factory | Hacked Thermic Laser | -6/Factory | Hacked Hvy. Treads | -6/Factory | Hacked Nuclear Pulse Thruster | -5/Factory | Hacked Xenon Bombardment Thruster | -5/Factory | Hacked Field Propulsion Drive | -5/Factory | Hacked Alien Tech Used ----------------- Core Expander Achievements -------------- Bob, First Of His Name Civilization 2243 Construction Begets Destruction DIY Cooler For Emergencies Only Heavy Suspicion I Have A Map? Item+ Jackpot Link The Feds Look Less Dangerous Next Time Organ Harvest Some Acronyms Are Better Than Others Suspicious Uncivil War Unwanted Attention Wiki Contributor You May Approach The Wall Challenges ------------ None RPGLIKE | -11 -10 -9 -9 -9 -9 -6 -6 -6 -6 -6 -6 -5 -5 -5 -5 --------- Run | Yrd Mat Mat Sto Rec Scr Fac Was Fac Low Low Dat Pro Fac Upp Upp Levels Raised 22 | . . 3 4 . 1 1 . 10 . . . 1 2 . . XP Earned 37171 | 3000 1100 4140 5597 837 542 2220 215 14077 278 622 152 1632 2618 141 . XP Spent 35950 | 2570 . 2500 1200 . 3600 580 5050 14100 . . . 800 5550 . . Upgrades 58 | 9 . 4 2 . 3 9 5 16 . . . 2 8 . . Power Slot 1 | 1 . . . . . . . . . . . . . . . Propulsion Slot 4 | 1 . . . . . . . 3 . . . . . . . Utility Slot 10 | 1 . 1 1 . 2 . 1 3 . . . . 1 . . Weapon Slot 3 | 1 . 1 . . . . 1 . . . . . . . . Core Integrity 8 | . . . . . . 8 . . . . . . . . . Heat Dissipation 7 | 4 . . . . . . . 3 . . . . . . . Matter Storage 2 | . . . . . . . 1 . . . . . 1 . . Mass Support 3 | . . . 1 . . . . 2 . . . . . . . Inventory Capacity 4 | 1 . . . . 1 . 2 . . . . . . . . Sight Range 1 | . . . . . . 1 . . . . . . . . . Sensor Range 2 | . . . . . . . . . . . . . 2 . . Ranged Accuracy 3 | . . 2 . . . . . . . . . 1 . . . Hack Attack % 1 | . . . . . . . . 1 . . . . . . . Hack Defense % 1 | . . . . . . . . 1 . . . . . . . KI Resistance % 2 | . . . . . . . . 1 . . . . 1 . . TH Resistance % 2 | . . . . . . . . 1 . . . . 1 . . EX Resistance % 1 | . . . . . . . . 1 . . . . . . . KI Damage % 3 | . . . . . . . . . . . . 1 2 . . Protomatter Created 3574 | . 49 399 329 47 166 98 146 667 151 581 . 384 557 . . Integrity Restored 7789 | . 105 807 708 137 207 243 438 2383 249 1236 . 813 463 . . Core 5998 | . 105 676 514 42 207 170 438 1827 249 743 . 696 331 . . Parts 1791 | . . 131 194 95 . 73 . 556 . 493 . 117 132 . . Protomatter Decayed 2761 | . 6 85 85 . 1249 16 87 532 79 64 . 117 441 . . Game ------ Seed LobotomyStrikeChainsaw Manual? 0 Play Time 01:49:36 Cumulative 740.7 hours Start 2025.10.23 @ 16:47:13 End 2025.10.23 @ 21:44:27 Sessions 3 Manual Loads 0 Difficulty Rogue Special Mode Winter2019/RPGLIKE Game No. 60 Rogue 48 Adventurer 9 Explorer 3 Win Type - Total 9 Types 4/0/0/2/0/1/1/0/0/1 Lore% 57 Gallery% 57 Achievement% 40 Wizard Run 0 Options --------- Layout 1 ASCII 0 Keyboard 0 Movement Mouse Keybinds 0 Fullscreen 1 Font 40/SmallcapsGlow Map View 50x40 Zoom Use 0% Tactical HUD 1 Map Filters NONE Filters NONE Steam 1 RUN: 0fb8b204-5858-46cf-9642-e4fda052624e